bitfinex/quotes_BTCUSD_20250802
["timestamp","ask_amount","ask_price","bid_price","bid_amount"]
[1754162338399,0.0002,112460.0,112450.0,0.80580309]
[1754162338610,0.0002,112460.0,112450.0,0.80357988]
[1754162339046,0.0002,112460.0,112450.0,0.95263988]
[1754162339693,0.0002,112460.0,112450.0,0.95663988]
[1754162339907,0.0002,112460.0,112450.0,0.96163988]
[1754162340140,0.0002,112460.0,112450.0,1.0416067]
[1754162340361,0.0002,112460.0,112450.0,0.79253432]
[1754162340581,0.0002,112460.0,112450.0,0.94753432]
[1754162341589,0.0002,112460.0,112450.0,1.28757432]
[1754162341822,0.0002,112460.0,112450.0,1.46543114]
[1754162342029,0.0002,112460.0,112450.0,1.9000436]
[1754162342856,0.0004,112480.0,112470.0,0.63461246]
[1754162343100,0.0004,112480.0,112470.0,1.0796453]
[1754162343521,0.0004,112480.0,112470.0,1.1253453]
[1754162345018,0.0004,112480.0,112470.0,1.1003453]
[1754162345251,0.0004,112480.0,112470.0,1.1253453]
[1754162346139,0.0004,112480.0,112470.0,1.15161912]
[1754162346789,0.0004,112480.0,112470.0,0.71700666]
[1754162347017,0.0004,112480.0,112470.0,0.72000666]
[1754162347237,0.0004,112480.0,112470.0,1.15761912]
[1754162347684,0.0004,112480.0,112470.0,1.17506814]
[1754162347910,0.0004,112480.0,112470.0,1.44476814]
[1754162348337,0.0004,112480.0,112470.0,1.78476814]
[1754162348963,0.0004,112480.0,112470.0,1.78833114]
[1754162349205,0.0004,112480.0,112470.0,1.96615633]
[1754162349406,0.00048403,112500.0,112490.0,0.99206148]
[1754162349625,0.00048403,112500.0,112490.0,1.23175432]
[1754162349849,0.00062798,112500.0,112490.0,1.23175432]
[1754162350065,0.00062798,112500.0,112490.0,1.98375036]
[1754162350248,0.0002,112510.0,112500.0,1.54834171]
[1754162350490,0.0002,112510.0,112500.0,1.77953455]
[1754162350703,0.0002,112510.0,112500.0,1.39062209]
[1754162351135,0.0002,112510.0,112500.0,1.84716725]
[1754162351376,0.0002,112520.0,112510.0,0.65133902]
[1754162351590,0.0002,112520.0,112510.0,1.31714432]
[1754162351811,0.0002,112520.0,112510.0,1.61182185]
[1754162352199,0.0004,112530.0,112520.0,0.50133902]
[1754162352422,0.0004,112530.0,112520.0,1.39909049]
[1754162352628,0.00340381,112550.0,112540.0,0.21744902]
[1754162352874,0.00388375,112550.0,112540.0,1.09697432]
[1754162353087,0.00388375,112550.0,112540.0,1.14267432]
[1754162353736,0.00388375,112550.0,112540.0,1.14467432]
[1754162353946,0.00388375,112550.0,112540.0,1.48467432]
[1754162354588,0.00388375,112550.0,112540.0,1.51274439]
[1754162354791,0.00388375,112550.0,112540.0,1.60663439]
[1754162355028,0.00388375,112550.0,112540.0,1.6433325]
[1754162355226,0.00388375,112550.0,112540.0,1.5494425]
[1754162355678,0.00388375,112550.0,112540.0,1.4089625]
[1754162355898,0.00388375,112550.0,112540.0,1.5494025]
[1754162356376,0.00388375,112550.0,112540.0,1.5494425]
[1754162357033,0.00591375,112550.0,112540.0,0.41175102]
[1754162357230,0.00591375,112550.0,112540.0,0.47286291]
[1754162357445,0.00591375,112550.0,112540.0,0.54031193]
[1754162357655,0.00591375,112550.0,112540.0,0.58498193]
[1754162357883,0.00388375,112550.0,112540.0,1.02070439]
[1754162358079,0.00388375,112550.0,112540.0,1.25630332]
[1754162358322,0.00388375,112550.0,112540.0,1.39670332]
[1754162358776,0.00388375,112550.0,112540.0,0.96209086]
[1754162359000,0.00388375,112550.0,112540.0,1.39870332]
[1754162359214,0.00388375,112550.0,112540.0,1.25830332]
[1754162359432,0.00388375,112550.0,112540.0,1.40630332]
[1754162359653,0.00586375,112550.0,112540.0,0.74777184]
[1754162359872,0.00586375,112550.0,112540.0,0.75077184]
[1754162360094,0.00388375,112550.0,112540.0,1.0518543]
[1754162360344,0.00388375,112550.0,112540.0,1.06430332]
[1754162360580,0.00586375,112550.0,112540.0,1.05303332]
[1754162360796,0.00388375,112550.0,112540.0,1.05614332]
[1754162361678,0.00388375,112550.0,112540.0,1.05914332]
[1754162362319,0.00388375,112550.0,112540.0,0.62453086]
[1754162362542,0.00586375,112550.0,112540.0,0.91519332]
[1754162362771,0.00388375,112550.0,112540.0,1.05918332]
[1754162362995,0.46571757,112600.0,112550.0,0.40744902]
[1754162363200,0.47395612,112600.0,112580.0,0.08863284]
[1754162363418,0.47395612,112600.0,112590.0,0.14084]
[1754162363419,0.47410006,112600.0,112590.0,0.14084]
[1754162363631,0.47410006,112600.0,112590.0,0.22947284]
[1754162364308,0.47910006,112600.0,112590.0,0.22947284]
[1754162364543,0.47410777,112600.0,112590.0,0.22947284]
[1754162364753,0.47910777,112600.0,112590.0,0.22947284]
[1754162364967,0.81910777,112600.0,112590.0,0.22939284]
[1754162365184,0.82110777,112600.0,112590.0,0.22939284]
[1754162365394,0.82110777,112600.0,112590.0,0.08867284]
[1754162365618,0.81910777,112600.0,112590.0,0.22939284]
[1754162365845,0.81910777,112600.0,112590.0,4e-05]
[1754162366054,1.25572023,112600.0,112590.0,4e-05]
[1754162366280,1.25572023,112600.0,112590.0,0.14076]
[1754162366487,0.82110777,112600.0,112590.0,0.14076]
[1754162367807,1.25572023,112600.0,112590.0,4e-05]
[1754162368474,0.38649531,112600.0,112590.0,4e-05]
[1754162368689,1.25572023,112600.0,112590.0,4e-05]
[1754162369338,1.25372023,112600.0,112590.0,4e-05]
[1754162369554,1.25672023,112600.0,112590.0,4e-05]
[1754162369768,1.25172023,112600.0,112590.0,4e-05]
[1754162369991,1.25472023,112600.0,112590.0,4e-05]
[1754162370208,1.24872023,112600.0,112590.0,4e-05]
[1754162370422,1.25272023,112600.0,112590.0,4e-05]
[1754162370686,1.25972023,112600.0,112590.0,4e-05]
[1754162370900,1.25272023,112600.0,112590.0,4e-05]
[1754162371320,1.27916925,112600.0,112590.0,4e-05]
[1754162371531,1.27516925,112600.0,112590.0,4e-05]
[1754162372022,1.32684443,112600.0,112590.0,4e-05]
[1754162372893,0.39049531,112600.0,112590.0,4e-05]
[1754162373113,0.77461246,112590.0,112570.0,0.21293556]
[1754162373348,0.43461246,112580.0,112570.0,0.3015684]
[1754162373558,0.44285872,112580.0,112570.0,0.3015684]
[1754162373981,0.45676452,112580.0,112570.0,0.3015684]
[1754162374404,0.45676452,112580.0,112570.0,0.3045684]
[1754162375270,0.79676452,112580.0,112570.0,0.1628484]
[1754162375708,0.36215206,112580.0,112570.0,0.2037784]
[1754162375930,0.36215206,112580.0,112570.0,0.2109984]
[1754162376153,0.02215206,112580.0,112570.0,0.2109984]
[1754162377046,0.02220221,112580.0,112570.0,0.2090384]
[1754162377264,0.02220221,112580.0,112570.0,0.2130384]
[1754162378574,0.02220221,112580.0,112570.0,0.2150384]
[1754162379697,0.02220221,112580.0,112570.0,0.2130384]
[1754162379988,0.02220221,112580.0,112570.0,0.14282284]
[1754162380215,0.45681467,112580.0,112570.0,0.09367284]
[1754162380470,0.45681467,112580.0,112570.0,0.23523284]
[1754162380955,0.45681467,112580.0,112570.0,0.28438284]
[1754162380956,0.02220221,112580.0,112570.0,0.28438284]
[1754162381199,0.02220221,112580.0,112570.0,0.28338284]
[1754162381408,0.02220221,112580.0,112570.0,0.28136284]
[1754162382618,0.02220221,112580.0,112570.0,0.13980284]
[1754162382831,0.02220221,112580.0,112570.0,0.28128284]
[1754162383049,0.45681467,112580.0,112570.0,0.27808284]
[1754162383272,0.45681467,112580.0,112570.0,0.23415284]
[1754162383510,0.45681467,112580.0,112570.0,0.23515284]
[1754162383721,0.02220221,112580.0,112570.0,0.28228284]
[1754162384199,0.45681467,112580.0,112570.0,0.23515284]
[1754162384419,0.45681467,112580.0,112570.0,0.23507284]
[1754162384861,0.02220221,112580.0,112570.0,0.23507284]
[1754162385071,0.02220221,112580.0,112570.0,0.28220284]
[1754162386437,0.45681467,112580.0,112570.0,0.28220284]
[1754162387043,0.02220221,112580.0,112570.0,0.28220284]
[1754162387289,0.45681467,112580.0,112570.0,0.28220284]
[1754162387510,0.45681467,112580.0,112570.0,0.28212284]
[1754162388143,0.45681467,112580.0,112570.0,0.28414284]
[1754162388363,0.45683961,112580.0,112570.0,0.28414284]
[1754162389011,0.45683961,112580.0,112570.0,0.27892284]
[1754162389226,0.45683961,112580.0,112570.0,0.23499284]
[1754162390119,0.79683961,112580.0,112570.0,0.23475284]
[1754162390341,0.79683961,112580.0,112570.0,0.09367284]
[1754162390555,0.79683961,112580.0,112570.0,0.23475284]
[1754162390762,0.79683961,112580.0,112570.0,0.23375284]
[1754162392589,0.79683961,112580.0,112570.0,0.22975284]
[1754162392800,0.79683961,112580.0,112570.0,0.27568284]
[1754162393021,0.79683961,112580.0,112570.0,0.28090284]
[1754162393245,0.02222715,112580.0,112570.0,0.28090284]
[1754162394205,0.45684597,112580.0,112570.0,0.09067284]
[1754162394414,0.45684597,112580.0,112570.0,0.28098284]
[1754162395057,0.45684597,112580.0,112570.0,0.09067284]
[1754162395272,0.45684597,112580.0,112570.0,0.23183284]
[1754162395490,0.45684808,112580.0,112570.0,0.23183284]
[1754162395704,0.78851826,112580.0,112570.0,0.23183284]
[1754162397538,0.78851826,112580.0,112570.0,0.27811284]
[1754162398235,0.3539058,112580.0,112570.0,0.27811284]
[1754162398451,0.78851826,112580.0,112570.0,0.27811284]
[1754162398897,0.78851826,112580.0,112570.0,0.27296284]
[1754162400441,0.78851826,112580.0,112570.0,0.27811284]
[1754162401759,0.0139058,112580.0,112570.0,0.27811284]
[1754162403265,0.44851826,112580.0,112570.0,0.13180284]
[1754162403482,0.44851826,112580.0,112570.0,0.23175284]
[1754162403724,0.44851826,112580.0,112570.0,0.27605284]
[1754162404998,0.23964322,112580.0,112570.0,0.27605284]
[1754162405415,0.43461246,112580.0,112570.0,0.27605284]
[1754162405895,0.77461246,112590.0,112570.0,0.27605284]
[1754162406107,0.77461246,112590.0,112580.0,0.13293284]
[1754162406979,0.77561246,112590.0,112580.0,0.13293284]
[1754162407395,0.341,112590.0,112580.0,0.13293284]
[1754162407609,0.34,112590.0,112580.0,0.13293284]
[1754162407828,0.35490406,112590.0,112580.0,0.13491284]
[1754162408243,0.35490406,112590.0,112580.0,0.13591284]
[1754162409129,0.35490406,112590.0,112580.0,0.27727284]
[1754162415549,0.01490406,112590.0,112580.0,0.27727284]
[1754162418833,0.001,112590.0,112580.0,0.27727284]
[1754162419894,0.001,112590.0,112580.0,0.27227284]
[1754162422018,0.03124841,112600.0,112580.0,0.27127284]
[1754162422231,0.03124841,112600.0,112590.0,0.0443]
[1754162422445,0.03124841,112600.0,112590.0,0.13491284]
[1754162422883,0.03089491,112600.0,112590.0,0.13491284]
[1754162423740,0.03089491,112600.0,112590.0,0.13791284]
[1754162424881,0.03089491,112600.0,112590.0,0.13891284]
[1754162425528,0.03089491,112600.0,112590.0,0.14113328]
[1754162428048,0.01699254,112600.0,112590.0,0.14113328]
[1754162428247,0.01699254,112600.0,112590.0,0.28181328]
[1754162428461,0.01699254,112600.0,112590.0,0.27444284]
[1754162428893,0.01699254,112600.0,112590.0,0.27950284]
[1754162429100,0.03089393,112600.0,112590.0,0.27950284]
[1754162429747,0.37089393,112600.0,112590.0,0.27950284]
[1754162430562,0.37089393,112600.0,112590.0,0.13376284]
[1754162430779,0.80550639,112600.0,112590.0,0.27452284]
[1754162431196,0.80550639,112600.0,112590.0,0.09263284]
[1754162431399,0.80550639,112600.0,112590.0,0.23347284]
[1754162434303,0.791605,112600.0,112590.0,0.27689284]
[1754162435963,0.35699254,112600.0,112590.0,0.28195284]
[1754162438076,0.01699254,112600.0,112590.0,0.28195284]
[1754162441547,0.01699254,112600.0,112590.0,0.3531684]
[1754162442528,0.01699254,112600.0,112590.0,0.80522988]
[1754162442748,0.01699254,112600.0,112590.0,0.85522988]
[1754162443586,0.01699254,112600.0,112590.0,0.85122988]
[1754162443796,0.00012056,112600.0,112590.0,0.85148002]
[1754162443996,0.00112056,112600.0,112590.0,1.13118002]
[1754162444446,0.00112056,112600.0,112590.0,1.12918001]
[1754162444848,0.00012056,112600.0,112590.0,1.12518001]
[1754162445210,0.00112056,112600.0,112590.0,1.13773901]
[1754162445598,0.0004,112620.0,112610.0,0.01744902]
[1754162445796,0.0004,112620.0,112610.0,0.68567437]
[1754162445998,0.0004,112620.0,112610.0,0.72981432]
[1754162446396,0.0004,112620.0,112610.0,0.76066064]
[1754162446745,0.0004,112620.0,112610.0,0.32604818]
[1754162447194,0.0004,112620.0,112610.0,0.32904818]
[1754162447872,0.0004,112620.0,112610.0,0.33104818]
[1754162448098,0.0004,112620.0,112610.0,0.15956186]
[1754162448352,0.0004,112620.0,112610.0,0.28283284]
[1754162449645,0.0004,112620.0,112610.0,0.3540484]
[1754162450085,0.0004,112620.0,112610.0,0.38118624]
[1754162450728,0.0004,112620.0,112610.0,0.30997068]
[1754162451415,0.0004,112620.0,112610.0,0.31009068]
[1754162453360,0.0004,112620.0,112610.0,0.16725068]
[1754162453606,0.0004,112620.0,112610.0,0.30939073]
[1754162453814,0.0004,112620.0,112610.0,0.31017068]
[1754162454676,0.0004,112620.0,112610.0,0.38138624]
[1754162455167,0.0004,112620.0,112610.0,0.31017068]
[1754162460069,0.0004,112620.0,112610.0,0.31005068]
[1754162460500,0.0004,112620.0,112610.0,0.31001068]
[1754162460928,0.0004,112620.0,112610.0,0.16925068]
[1754162461144,0.0004,112620.0,112610.0,0.31219073]
[1754162461584,0.44277923,112620.0,112610.0,0.09363284]
[1754162461588,0.78277923,112620.0,112610.0,0.09363284]
[1754162461836,0.79667843,112620.0,112610.0,0.14572]
[1754162462324,0.79667843,112620.0,112610.0,0.23239284]
[1754162462578,0.3542992,112620.0,112610.0,0.23239284]
[1754162462841,0.3542992,112620.0,112610.0,0.23064294]
[1754162463056,0.3562992,112620.0,112610.0,0.22968294]
[1754162463696,0.3562992,112620.0,112610.0,0.22968293]
[1754162463935,0.3542992,112620.0,112610.0,0.08888293]
[1754162464187,0.77253134,112620.0,112610.0,0.23068293]
[1754162464433,0.77453134,112620.0,112610.0,0.23068293]
[1754162464903,0.77253134,112620.0,112610.0,0.08988293]
[1754162465133,0.77253134,112620.0,112610.0,0.23092293]
[1754162465622,0.3404,112620.0,112610.0,0.23092293]
[1754162466541,0.77253134,112620.0,112610.0,0.08988293]
[1754162466783,0.77253134,112620.0,112610.0,0.23088293]
[1754162467430,0.3404,112620.0,112610.0,0.22988293]
[1754162467939,0.3414,112620.0,112610.0,0.22988293]
[1754162468223,0.3414,112620.0,112610.0,0.13037293]
[1754162468511,0.35629999,112620.0,112610.0,0.27447293]
[1754162468794,0.35629999,112620.0,112610.0,0.27149293]
[1754162469282,0.38099899,112620.0,112610.0,0.27149293]
[1754162469554,0.38099899,112620.0,112610.0,0.27249293]
[1754162469804,0.38099899,112620.0,112610.0,0.27761293]
[1754162470612,0.35429999,112620.0,112610.0,0.27761293]
[1754162471088,0.01429999,112620.0,112610.0,0.34882848]
[1754162474124,0.0004,112620.0,112610.0,0.34882848]
[1754162475456,0.0004,112620.0,112610.0,0.78095982]
[1754162475695,0.0004,112620.0,112610.0,0.79840883]
[1754162476327,0.0004,112620.0,112610.0,0.36627749]
[1754162476787,0.0004,112620.0,112610.0,0.36527749]
[1754162476999,0.0004,112620.0,112610.0,0.27613291]
[1754162477210,0.0004,112620.0,112610.0,0.28113291]
[1754162477410,0.0004,112620.0,112610.0,0.28413291]
[1754162478759,0.07060795,112640.0,112610.0,0.28413291]
[1754162478961,8.514e-05,112630.0,112620.0,0.09085269]
[1754162479173,8.514e-05,112630.0,112620.0,0.13771276]
[1754162480230,8.514e-05,112630.0,112620.0,0.13971276]
[1754162481109,8.514e-05,112630.0,112620.0,0.14171276]
[1754162482803,8.514e-05,112630.0,112620.0,0.57384409]
[1754162483026,8.514e-05,112630.0,112620.0,0.1394929]
[1754162483240,8.514e-05,112630.0,112620.0,0.14171275]
[1754162484273,8.514e-05,112630.0,112620.0,0.28223275]
[1754162484515,8.514e-05,112630.0,112620.0,0.2800129]
[1754162484728,0.43213134,112670.0,112620.0,0.2800129]
[1754162484984,0.49804626,112670.0,112630.0,0.13543249]
[1754162485202,0.48973443,112670.0,112640.0,0.14052]
[1754162485431,0.48973443,112670.0,112650.0,0.08863284]
[1754162485683,0.48973443,112670.0,112660.0,0.14052]
[1754162486379,0.49373443,112670.0,112660.0,0.14052]
[1754162486597,0.49173443,112670.0,112660.0,0.14052]
[1754162486825,0.83373443,112670.0,112660.0,0.14052]
[1754162487067,0.84762957,112670.0,112660.0,0.14052]
[1754162487286,0.84562957,112670.0,112660.0,0.14052]
[1754162487988,0.84762957,112670.0,112660.0,0.14052]
[1754162489573,0.41549823,112670.0,112660.0,0.14052]
[1754162490266,0.04880623,112670.0,112660.0,0.27588284]
[1754162490483,0.04680623,112670.0,112660.0,0.27588284]
[1754162490712,0.04780623,112670.0,112660.0,0.27588284]
[1754162492014,0.04580623,112670.0,112660.0,0.13536284]
[1754162492248,0.04680623,112670.0,112660.0,0.12999284]
[1754162492483,0.04680623,112670.0,112660.0,0.22911284]
[1754162492484,0.47793757,112670.0,112660.0,0.22911284]
[1754162492708,0.04580623,112670.0,112660.0,0.22911284]
[1754162492933,0.48798258,112670.0,112660.0,0.27247284]
[1754162493163,0.48798258,112670.0,112660.0,0.09063284]
[1754162493421,0.48798258,112670.0,112660.0,0.23111284]
[1754162493669,0.48798258,112670.0,112660.0,0.22911284]
[1754162494180,0.03091109,112670.0,112660.0,0.27369284]
[1754162494417,0.03091109,112670.0,112660.0,0.08863284]
[1754162494633,0.47308744,112670.0,112660.0,0.22911284]
[1754162495090,0.47408744,112670.0,112660.0,0.22911284]
[1754162495296,0.47508744,112670.0,112660.0,0.22911284]
[1754162495493,0.47408744,112670.0,112660.0,0.27047284]
[1754162495709,0.03191109,112670.0,112660.0,0.27047284]
[1754162495967,0.47408744,112670.0,112660.0,0.27584284]
[1754162496431,0.47308744,112670.0,112660.0,0.27584284]
[1754162497106,0.48698109,112670.0,112660.0,0.27584284]
[1754162497796,0.04480474,112670.0,112660.0,0.27584284]
[1754162498512,0.01437286,112670.0,112660.0,0.27584284]
[1754162503830,0.01437286,112670.0,112660.0,0.13536284]
[1754162504030,0.00047921,112670.0,112660.0,0.2780619]
[1754162504248,0.00047921,112670.0,112660.0,0.27584284]
[1754162506128,0.44217635,112690.0,112660.0,0.27584284]
[1754162506367,0.03596767,112690.0,112670.0,0.08863284]
[1754162506627,0.03596767,112690.0,112680.0,0.1818]
[1754162506870,0.03596767,112690.0,112680.0,0.27043284]
[1754162507111,0.049859,112690.0,112680.0,0.27580284]
[1754162507982,0.053859,112690.0,112680.0,0.27580284]
[1754162508579,0.055859,112690.0,112680.0,0.27580284]
[1754162508738,0.051859,112690.0,112680.0,0.27580284]
[1754162508948,0.49403535,112690.0,112680.0,0.08863284]
[1754162509146,0.83403535,112690.0,112680.0,0.22907284]
[1754162509778,0.83203535,112690.0,112680.0,0.22907284]
[1754162510360,0.83203535,112690.0,112680.0,0.08863284]
[1754162510588,0.34,112680.0,112650.0,0.14303345]
[1754162510812,0.34,112680.0,112660.0,0.08863284]
[1754162511019,0.77187764,112680.0,112660.0,0.22907284]
[1754162511228,0.7801836,112680.0,112660.0,0.08863284]
[1754162511426,0.7801836,112680.0,112670.0,0.14044]
[1754162511637,0.7801836,112680.0,112670.0,0.22907284]
[1754162512256,0.00930596,112680.0,112670.0,0.22907284]
[1754162512469,0.50942464,112690.0,112670.0,0.22907284]
[1754162512681,0.08585459,112690.0,112670.0,0.27043284]
[1754162512913,0.08485459,112690.0,112670.0,0.27365284]
[1754162513124,0.001,112680.0,112670.0,0.27365284]
[1754162513342,0.001,112680.0,112670.0,0.27580284]
[1754162513777,0.03596767,112690.0,112670.0,0.27580284]
[1754162513980,0.04627597,112690.0,112680.0,0.2044284]
[1754162514208,0.04627597,112690.0,112680.0,0.2065784]
[1754162514418,0.0581675,112690.0,112680.0,0.2065784]
[1754162514629,0.0498592,112690.0,112680.0,0.2065784]
[1754162515722,0.03596767,112690.0,112680.0,0.2065784]
[1754162516941,0.03696767,112690.0,112680.0,0.2065784]
[1754162517191,0.03696767,112690.0,112680.0,0.2075784]
[1754162517448,0.04985821,112690.0,112680.0,0.2075784]
[1754162517705,0.04985821,112690.0,112680.0,0.23007284]
[1754162517945,0.05816932,112690.0,112680.0,0.27693284]
[1754162518152,0.05816932,112690.0,112680.0,0.28190284]
[1754162518366,0.02228675,112690.0,112680.0,0.28190284]
[1754162518774,0.01397564,112690.0,112680.0,0.28190284]
[1754162520014,0.01397564,112690.0,112680.0,0.28090284]
[1754162520488,0.01497564,112690.0,112680.0,0.28090284]
[1754162520818,0.01497564,112690.0,112680.0,0.71278048]
[1754162521066,8.51e-05,112690.0,112680.0,0.14046284]
[1754162521308,8.51e-05,112690.0,112680.0,0.28190284]
[1754162521605,8.51e-05,112690.0,112680.0,0.71278048]
[1754162521800,8.51e-05,112690.0,112680.0,0.7302295]
[1754162522090,8.51e-05,112690.0,112680.0,0.7322295]
[1754162522330,8.51e-05,112690.0,112680.0,0.30035186]
[1754162522571,8.51e-05,112690.0,112680.0,0.7322295]
[1754162522789,8.51e-05,112690.0,112680.0,0.73247944]
[1754162523035,8.51e-05,112690.0,112680.0,0.73547944]
[1754162523274,8.51e-05,112690.0,112680.0,0.73347944]
[1754162523516,8.51e-05,112690.0,112680.0,0.73747944]
[1754162523999,8.51e-05,112690.0,112680.0,0.78747943]
[1754162524240,8.51e-05,112690.0,112680.0,0.78347943]
[1754162524767,8.51e-05,112690.0,112680.0,1.22236943]
[1754162525013,8.51e-05,112690.0,112680.0,1.23977143]
[1754162525269,8.51e-05,112690.0,112680.0,1.14588142]
[1754162527211,0.0174021,112710.0,112700.0,0.01744902]
[1754162527450,0.0174021,112710.0,112700.0,1.18928541]
[1754162527696,0.0174021,112710.0,112700.0,1.18706714]
[1754162527961,0.0004,112720.0,112700.0,1.18706714]
[1754162528198,0.0004,112720.0,112710.0,0.65904506]
[1754162528444,0.0004,112720.0,112710.0,0.83600506]
[1754162528678,0.0004,112720.0,112710.0,0.86100506]
[1754162528924,0.00583874,112740.0,112730.0,0.01744902]
[1754162529398,0.00598243,112740.0,112730.0,0.74122718]
[1754162529660,0.00598243,112740.0,112730.0,0.30713186]
[1754162529915,0.00598243,112740.0,112730.0,0.7390095]
[1754162530164,0.00598243,112740.0,112730.0,0.7410095]
[1754162530426,0.00598243,112740.0,112730.0,0.30913186]
[1754162530673,0.31137089,112790.0,112740.0,0.34]
[1754162530931,0.31137089,112790.0,112750.0,0.23341013]
[1754162530932,0.01388278,112780.0,112750.0,0.23341013]
[1754162531186,0.02214639,112780.0,112750.0,0.23119284]
[1754162531681,0.02214639,112780.0,112750.0,0.28106284]
[1754162531936,0.02214639,112780.0,112760.0,0.04686]
[1754162532179,0.05744588,112780.0,112770.0,0.23119284]
[1754162533168,0.05944588,112780.0,112770.0,0.08863284]
[1754162533379,0.05944588,112780.0,112770.0,0.23123284]
[1754162533596,0.48932352,112780.0,112770.0,0.23123284]
[1754162533820,0.82932352,112780.0,112730.0,0.12108556]
[1754162534042,0.43187764,112760.0,112740.0,0.23123284]
[1754162534301,0.34,112750.0,112740.0,0.08863284]
[1754162534560,0.00825439,112750.0,112740.0,0.27805284]
[1754162534819,0.00825439,112750.0,112740.0,0.28106284]
[1754162535978,0.00825439,112750.0,112740.0,0.13850284]
[1754162536224,0.00825439,112750.0,112740.0,0.28110284]
[1754162536715,0.00825439,112750.0,112740.0,0.08863284]
[1754162536999,0.00825439,112750.0,112740.0,0.23135284]
[1754162537247,0.31543152,112780.0,112740.0,0.23135284]
[1754162537483,0.43187764,112760.0,112740.0,0.23135284]
[1754162537735,0.43187764,112770.0,112740.0,0.23135284]
[1754162537956,4.997944,112770.0,112740.0,0.23135284]
[1754162538171,4.94370583,112770.0,112740.0,0.23135284]
[1754162538386,0.44576183,112770.0,112740.0,0.23235284]
[1754162539015,0.34,112760.0,112740.0,0.08963284]
[1754162539235,0.34,112760.0,112740.0,0.23231284]
[1754162540316,0.34,112760.0,112740.0,0.23131284]
[1754162540527,0.34,112750.0,112740.0,0.23131284]
[1754162541188,0.35388454,112750.0,112740.0,0.23131284]
[1754162542234,0.35588454,112750.0,112740.0,0.23131284]
[1754162542445,0.35688454,112750.0,112740.0,0.23131284]
[1754162542759,0.78876218,112750.0,112720.0,0.05011984]
[1754162542977,0.78876218,112750.0,112730.0,0.14256]
[1754162542978,0.34,112740.0,112730.0,0.14256]
[1754162543198,0.77187764,112740.0,112720.0,0.08888268]
[1754162543417,0.77187764,112740.0,112720.0,0.23176268]
[1754162543867,0.77187764,112740.0,112720.0,0.14312984]
[1754162544092,0.77187764,112740.0,112720.0,0.00024984]
[1754162544311,0.77187764,112740.0,112720.0,0.14359353]
[1754162544961,0.00707,112730.0,112720.0,0.14359353]
[1754162545888,0.43894764,112730.0,112720.0,0.14359353]
[1754162546110,0.34,112740.0,112720.0,0.14359353]
[1754162546334,0.01388732,112730.0,112720.0,0.00039353]
[1754162546552,0.04056632,112730.0,112720.0,0.00039353]
[1754162546772,0.01388732,112730.0,112720.0,0.13945637]
[1754162547203,0.01388732,112730.0,112720.0,0.14441637]
[1754162548086,0.01388732,112730.0,112720.0,0.57829401]
[1754162548737,0.01388732,112730.0,112720.0,0.14641636]
[1754162549158,0.02217753,112730.0,112720.0,0.14641636]
[1754162549604,0.02217753,112730.0,112720.0,0.14741636]
[1754162550727,0.02217753,112730.0,112720.0,0.09202636]
[1754162550934,0.36217753,112730.0,112720.0,0.23490636]
[1754162551627,0.36217753,112730.0,112720.0,0.28533636]
[1754162552565,0.02217753,112730.0,112720.0,0.29029636]
[1754162552794,0.02217753,112730.0,112720.0,0.28533636]
[1754162553013,0.36217753,112730.0,112720.0,0.23490636]
[1754162553225,0.36217753,112730.0,112720.0,0.23494636]
[1754162553648,0.36924753,112730.0,112720.0,0.14627352]
[1754162554263,0.35536021,112730.0,112720.0,0.14627352]
[1754162554519,0.35536021,112730.0,112720.0,0.14527352]
[1754162554739,0.35536021,112730.0,112720.0,0.14327352]
[1754162555192,0.35636021,112730.0,112720.0,0.14327352]
[1754162556062,0.35636021,112730.0,112720.0,0.00039352]
[1754162556275,0.01636021,112730.0,112720.0,0.00039352]
[1754162556714,0.00929021,112730.0,112720.0,0.07160908]
[1754162557349,0.0231773,112730.0,112720.0,0.07160908]
[1754162558980,0.0231773,112730.0,112720.0,0.12203908]
[1754162560830,0.19239377,112740.0,112720.0,0.07160908]
[1754162561239,0.24955874,112740.0,112720.0,0.07160908]
[1754162561846,0.25055874,112740.0,112720.0,0.07160908]
[1754162562050,0.66583658,112740.0,112720.0,0.07160908]
[1754162562265,0.23595894,112740.0,112720.0,0.07160908]
[1754162562474,0.6844439,112740.0,112720.0,0.12203908]
[1754162562699,0.6844439,112740.0,112720.0,0.07160908]
[1754162563125,0.66783658,112740.0,112720.0,0.07160908]
[1754162563332,0.25257473,112740.0,112720.0,0.07160908]
[1754162564141,0.25257473,112740.0,112720.0,0.12203908]
[1754162564660,0.22589673,112740.0,112720.0,0.12203908]
[1754162564858,0.22589673,112740.0,112720.0,0.07160908]
[1754162565066,0.25257473,112740.0,112720.0,0.07160907]
[1754162565278,0.68445237,112740.0,112720.0,0.07160907]
[1754162565484,0.68445237,112740.0,112720.0,0.12203907]
[1754162565695,0.25257473,112740.0,112720.0,0.12203907]
[1754162565906,0.20928094,112740.0,112720.0,0.12501907]
[1754162566375,0.01688717,112740.0,112720.0,0.12501907]
[1754162566557,0.34,112730.0,112720.0,0.07458907]
[1754162566809,0.003,112740.0,112720.0,0.07656907]
[1754162567024,0.343,112740.0,112720.0,0.12699907]
[1754162567475,0.35688659,112740.0,112720.0,0.12699907]
[1754162567678,0.35388659,112740.0,112720.0,0.12699907]
[1754162568196,0.37051281,112740.0,112720.0,0.12699907]
[1754162568666,0.37251281,112740.0,112720.0,0.12699907]
[1754162570144,0.37351281,112740.0,112720.0,0.12699907]
[1754162571223,0.35688659,112740.0,112720.0,0.12699907]
[1754162571456,0.37351767,112740.0,112720.0,0.12699907]
[1754162572306,0.35688659,112740.0,112720.0,0.12699907]
[1754162572825,0.36520315,112740.0,112720.0,0.12699907]
[1754162573922,0.36520315,112740.0,112730.0,0.05043]
[1754162574139,0.35131656,112740.0,112730.0,0.05067982]
[1754162574750,0.34931656,112740.0,112730.0,0.05067982]
[1754162575168,0.35131656,112740.0,112730.0,0.05067982]
[1754162576239,0.35031656,112740.0,112730.0,0.05067982]
[1754162576677,0.35131656,112740.0,112730.0,0.05067982]
[1754162577029,0.36520305,112740.0,112730.0,0.05067982]
[1754162577438,0.36520305,112740.0,112730.0,0.05566982]
[1754162578449,0.79708069,112740.0,112730.0,0.00024982]
[1754162578861,0.80693657,112740.0,112730.0,0.00024982]
[1754162579067,0.80693657,112740.0,112730.0,0.05049982]
[1754162579423,0.80693657,112740.0,112730.0,0.00024982]
[1754162579625,0.79305008,112740.0,112730.0,0.00024982]
[1754162580035,0.79305008,112740.0,112730.0,0.05049982]
[1754162581058,0.35131656,112740.0,112730.0,0.05049982]
[1754162581292,0.01131656,112740.0,112730.0,0.05548982]
[1754162582130,0.0113229,112740.0,112730.0,0.05548982]
[1754162587863,0.01132109,112740.0,112730.0,0.05548982]
[1754162589608,0.0252073,112740.0,112730.0,0.05548982]
[1754162591436,0.3652073,112740.0,112730.0,0.05548982]
[1754162595265,0.80694082,112740.0,112730.0,0.00024982]
[1754162596417,0.80694438,112740.0,112730.0,0.00024982]